[Event "Bangabandhu Premier Div League 2022"]
[Site "Dhaka"]
[Date "2022.12.05"]
[Round "6.1"]
[White "Rahman, Ziaur"]
[Black "Murshed, Niaz"]
[Result "1-0"]
[ECO "A30"]
[WhiteElo "2464"]
[BlackElo "2419"]
[Annotator "TA"]
[PlyCount "67"]
[EventDate "2022.12.01"]
[EventCountry "BAN"]
[SourceTitle "playchess.com"]
[Source "ChessBase"]
[SourceQuality "1"]
[TimeControl "40/5400+30:1800+30"]

{[%evp 16,67,69,65,77,69,80,73,80,72,78,84,81,69,75,90,81,72,63,64,62,53,72,37,35,25,42,44,44,44,46,49,67,88,149,85,57,60,106,83,72,50,58,50,46,43,275,275,327,335,334,334,533,417]} 1. Nf3 {[%emt 0:01:18]} Nf6 {[%emt 1:31:00]} 2. g3 {[%emt 1:30:12]} b6 {[%emt 0:00:00]} 3. Bg2 {[%emt 0:00:00]} Bb7 {[%emt 0:01:00]} 4. O-O {[%emt 0:01:00]} g6 {[%emt 0:00:30]} 5. c4 {[%emt 0:00:30]} Bg7 {[%emt 0:00:00]} 6. d4 {[%emt 0:00:00]} O-O {[%emt 0:01:00]} 7. d5 {[%emt 0:01:00]} d6 {[%emt 0:00:00]} 8. Nc3 {[%emt 0:00:30]} c5 {[%emt 0:01:00]} 9. Bf4 {[%emt 0:00:00]} Na6 {[%emt 0:00:30] A30: Symmetrical English: Double Fianchetto and Hedgehog.} 10. e4 {[%emt 0:01:00] White is more active.} Nc7 {[%emt 0:00:00]} 11. Re1 {[%emt 0:00:00] [#]} Nh5 $146 {[%emt 0:01:00] White is better.} ({Predecessor:} 11... h6 12. e5 Nfe8 13. Qd3 Bc8 14. e6 fxe6 15. Qxg6 e5 16. Be3 Qd7 17. Nh4 Qg4 {1-0 (36) Novkovic,M (2380)-Biro,S (2340) Austria 1997}) 12. Bg5 {[%emt 0:00:00]} h6 {[%emt 0:00:00]} 13. Be3 {[%emt 0:01:30]} Qd7 {[%emt 0:01:00]} 14. Qd2 {[%emt 0:00:00]} Kh7 {[%emt 0:00:30]} 15. Rad1 {[%emt 0:01:00]} Rad8 {[%emt 0:00:30]} 16. Nh4 {[%emt 0:00:30]} Ba6 {[%emt 0:00:30]} 17. Qe2 {[%emt 0:00:30][%cal Oh4f5]} Nf6 {[%emt 0:00:30]} 18. a4 {[%emt 0:00:30]} e5 {[%emt 0:00:30]} 19. dxe6 {[%emt 0:00:00]} (19. Ra1 {simplifies} Ra8 20. Reb1 Rfb8 21. Nf3) 19... Qxe6 {[%emt 0:00:30]} 20. Nb5 {[%emt 0:01:00]} Bxb5 {[%emt 0:00:30]} 21. axb5 {[%emt 0:00:30]} a6 {[%emt 0:00:30]} 22. bxa6 {[%emt 0:00:00]} Nxa6 {[%emt 0:00:30]} 23. Bd2 {[%emt 0:01:00]} Nd7 {[%emt 0:00:30]} 24. Bc3 {[%emt 0:00:30]} Nc7 {[%emt 0:00:30]} ({Black should try} 24... Nb4) 25. Bxg7 {[%emt 0:00:00]} (25. f4 $142 $1) 25... Kxg7 $16 {[%emt 0:00:30]} 26. f4 {[%emt 0:01:00][%cal Ob2b4] Against Ne5} Rfe8 {[%emt 0:00:30]} (26... Qf6 $14 {might be stronger.}) 27. Qd3 {[%emt 0:00:30]} (27. e5 {seems wilder.} dxe5 28. f5 Qf6 29. fxg6 fxg6 30. Rf1) 27... Nf6 {[%emt 0:00:30]} 28. Ra1 {[%emt 0:00:30] Prevents b5.} b5 {[%emt 0:00:30]} 29. b3 {[%emt 0:00:30]} bxc4 {[%emt 0:00:00]} 30. bxc4 {[%emt 0:00:30]} Ra8 $2 {[%emt 0:01:00] This costs Black the game.} ({Better is} 30... Qe7 $14) 31. Rxa8 $18 {[%emt 0:00:30]} Nxa8 {[%emt 0:00:30] [#]} 32. f5 $1 {[%emt 0:00:30][%cal Bf4f5,Bf5g6][%mdl 32]} Qe5 {[%emt 0:00:30] [#]} 33. Nf3 {[%emt 0:00:30] Prevents g5.} Qb2 {[%emt 0:00:30]} (33... Qe7 {is a better defense.} 34. fxg6 Ng4 35. gxf7 Rf8) 34. fxg6 {[%emt 0:00:00] Weighted Error Value: White=0.09 (flawless) /Black=0.34} ({Weaker is} 34. Qxd6 Rxe4 35. fxg6 (35. Qxc5 Rxe1+ 36. Nxe1 gxf5 $16) 35... Rxe1+ 36. Nxe1 Kxg6 $16) 1-0

[Event "Bangabandhu Premier Div League 2022"]
[Site "Dhaka"]
[Date "2022.12.05"]
[Round "6.1"]
[White "abzid, Rahman"]
[Black "Mohammad, Shameem"]
[Result "1/2-1/2"]
[ECO "D94"]
[WhiteElo "2043"]
[BlackElo "1892"]
[Annotator "TA"]
[PlyCount "68"]
[EventDate "2022.11.30"]
[EventType "team-tourn"]
[EventCountry "BAN"]
[SourceTitle "playchess.com"]
[Source "ChessBase"]
[SourceQuality "1"]
[TimeControl "40/5400+30:1800+30"]

{[%evp 20,68,-6,-18,-19,-52,-50,-45,-51,-51,-50,-59,-46,-49,-52,-63,-36,-49,-27,-31,0,-26,0,0,66,62,68,0,52,78,77,31,165,173,229,234,215,196,5385,5385,3207,2193,2391,0,0,0,1771,1401,5457,5289,29993]} 1. d4 {[%emt 0:02:47]} Nf6 {[%emt 0:00:10]} 2. c4 {[%emt 0:00:43]} g6 {[%emt 0:00:16]} 3. Nc3 {[%emt 0:00:12]} d5 {[%emt 0:00:03]} 4. Nf3 {[%emt 0:00:40]} Bg7 {[%emt 0:00:08]} 5. e3 {[%emt 0:01:23]} O-O {[%emt 0:00:20]} 6. Be2 {[%emt 0:00:48]} c5 {[%emt 0:08:42]} 7. O-O {[%emt 0:03:31]} cxd4 {[%emt 0:02:06]} 8. exd4 {[%emt 0:01:42]} Nc6 {[%emt 0:00:40]} 9. c5 {[%emt 0:03:16]} Ne4 {[%emt 0:00:42]} 10. Be3 {[%emt 0:05:56]} Bg4 {[%emt 0:09:03]} 11. Rc1 {[%emt 0:12:52]} e6 {[%emt 0:07:01] [#] D94: Grünfeld: 4 Nf3 Bg7 5 e3.} 12. Ne1 $146 {[%emt 0:17:37]} ({Predecessor:} 12. Nd2 Nxc3 13. bxc3 Bxe2 14. Qxe2 Qa5 15. Nb3 Qa4 16. Rb1 b6 17. Bf4 Qc4 18. Qxc4 dxc4 19. Nd2 {½-½ (26) Inkiov,V (2460)-Song,J (2398) Creon 2012}) 12... Nxc3 {[%emt 0:03:01]} 13. bxc3 {[%emt 0:00:45]} Bxe2 {[%emt 0:00:04] Black is slightly better.} 14. Qxe2 {[%emt 0:00:16]} Na5 {[%emt 0:16:21]} 15. Rb1 {[%emt 0:00:55]} b6 {[%emt 0:01:08]} 16. Nd3 {[%emt 0:01:04]} Nc4 {[%emt 0:00:44]} 17. Bf4 {[%emt 0:00:36]} Qd7 {[%emt 0:02:23]} 18. Rfe1 {[%emt 0:02:47]} Rfc8 {[%emt 0:01:21]} 19. h4 {[%emt 0:00:52]} h5 {[%emt 0:00:31]} (19... Bf8 $5 {[%cal Rb6c5]}) 20. Qf3 {[%emt 0:05:34]} bxc5 {[%emt 0:12:29]} (20... Re8 {simplifies} 21. Re2 Rac8 22. Rbe1 bxc5 23. Nxc5 Qd8) 21. Nxc5 {[%emt 0:01:06]} Rxc5 {[%emt 0:03:08]} 22. dxc5 $14 {[%emt 0:00:33]} Qc6 {[%emt 0:01:59]} 23. g4 {[%emt 0:09:18]} (23. Rb3 $14) 23... hxg4 {[%emt 0:07:43]} (23... e5 $1 $11) 24. Qxg4 {[%emt 0:00:15]} e5 {[%emt 0:01:18] Against h5} 25. Bg3 {[%emt 0:11:53]} (25. Be3 $16) 25... f5 {[%emt 0:01:02] Inhibits h5.} (25... Nd2 $1 $14) 26. Qg5 $1 $18 {[%emt 0:01:35]} f4 {[%emt 0:01:10] [#]} (26... Rc8 {was called for.} 27. Red1 f4) 27. Bxf4 $1 {[%emt 0:01:00]} exf4 {[%emt 0:00:19] [#]} 28. Re7 $1 {[%emt 0:00:46]} Nd2 $2 {[%emt 0:01:39] [#]} (28... Qxc5 {leads to mate.} 29. Rbb7 Qd6 30. Rxg7+ Kf8 31. Qh6 Ke8 32. Rg8+) (28... Bf8 29. Rbb7 Nd2 30. Qxf4 Bxe7 31. Rxe7 Rf8 32. Qxd2 Qxc5) 29. Rxg7+ $1 {[%emt 0:04:03][%mdl 576] Clearance} Kxg7 {[%emt 0:00:29]} 30. Qe7+ {[%emt 0:00:19]} Kh6 {[%emt 0:13:38]} 31. Qg5+ {[%emt 0:05:30]} Kh7 {[%emt 0:00:27]} 32. Qe7+ {[%emt 0:00:23]} Kh6 $1 {[%emt 0:00:05]} (32... Kg8 $2 33. Rb7 $18) 33. Rb7 {[%emt 0:06:03][%csl Gh4][%cal Re7g5]} Nf3+ 34. Kg2 {[%emt 0:00:00][%csl Gb7][%cal Re7h7]} Kh5 {[%emt 0:01:22][%mdl 32768] Weighted Error Value: White=0.40/Black=0.29 (precise) . An unexpected result.} 1/2-1/2

[Event "Bangabandhu Premier Div League 2022"]
[Site "Dhaka"]
[Date "2022.12.05"]
[Round "6.2"]
[White "Pantsulaia, Levan"]
[Black "Chanda, Sandipan"]
[Result "1/2-1/2"]
[ECO "A80"]
[WhiteElo "2597"]
[BlackElo "2474"]
[Annotator "TA"]
[PlyCount "133"]
[EventDate "2022.12.01"]
[EventCountry "BAN"]
[SourceTitle "playchess.com"]
[Source "ChessBase"]
[SourceQuality "1"]
[TimeControl "40/5400+30:1800+30"]

{[%evp 9,133,15,33,33,47,29,33,18,62,51,66,60,83,75,100,98,110,92,116,116,130,130,122,81,74,43,71,64,84,47,60,21,35,47,68,66,144,152,147,154,151,158,148,145,143,148,151,152,143,152,194,181,163,140,120,118,204,210,193,188,209,206,200,206,199,196,181,15,14,0,56,0,0,0,0,0,0,0,0,0,0,0,0,0,0,0,0,0,0,0,0,0,6,0,0,0,0,0,0,0,0,0,0,0,0,0,0,0,0,0,0,0,0,0,0,0,0,0,0,0,0,0,0,0,0,0]} 1. Nf3 {[%emt 0:00:04]} f5 {[%emt 0:00:08]} 2. b3 {[%emt 0:00:47]} d6 {[%emt 0:00:20]} 3. d4 {[%emt 0:00:07]} g6 {[%emt 0:00:05]} 4. Bb2 {[%emt 0:00:05]} Bg7 {[%emt 0:00:08]} 5. g3 {[%emt 0:00:10]} Nh6 {[%emt 0:00:59]} 6. Bg2 {[%emt 0:00:28] A80: Dutch Defence: Unusual White second moves.} O-O {[%emt 0:00:25][%cal Oe7e5] [#]} 7. Qc1 $146 {[%emt 0:07:04]} ({Predecessor:} 7. O-O Nf7 8. Nbd2 e5 9. e4 f4 10. Nc4 Nc6 11. dxe5 Nfxe5 12. Nfxe5 Nxe5 13. Nxe5 dxe5 14. Qxd8 Rxd8 {0-1 (73) Ovchinnikov,V (2426)-Stremavicius,T (2515) Chess.com INT 2022}) 7... c6 {[%emt 0:02:02]} 8. c4 {[%emt 1:25:45] White is slightly better.} d5 {[%emt 1:30:23]} 9. Ne5 {[%emt 0:00:00]} Be6 {[%emt 0:00:00]} 10. Nd2 {[%emt 0:00:00]} dxc4 {[%emt 0:00:00]} 11. bxc4 {[%emt 0:00:00]} Nd7 {[%emt 0:00:00]} 12. Nd3 {[%emt 0:00:00]} Bf7 {[%emt 0:00:00][%cal Oe7e5]} 13. O-O {[%emt 0:00:00]} Rc8 {[%emt 0:00:00]} 14. a4 {[%emt 0:00:00]} Qc7 {[%emt 0:00:00]} 15. Nf3 {[%emt 0:00:00]} Ng4 {[%emt 0:00:00]} 16. h3 {[%emt 0:00:00]} Ngf6 {[%emt 0:00:00]} 17. Nd2 {[%emt 0:04:30]} (17. Ng5 {is more complex.} Bh6 18. h4 Ne4 19. a5) 17... Rfd8 {[%emt 0:04:30]} 18. a5 {[%emt 0:00:00][%cal Ba4a5,Ba5a6][%mdl 32]} Ne8 {[%emt 0:00:00]} 19. a6 {[%emt 0:00:00]} b6 {[%emt 0:00:00]} 20. c5 {[%emt 0:00:00]} (20. Re1 {simplifies} e5 21. dxe5 Nxe5 22. Bxe5 Bxe5 23. Nxe5 Qxe5 24. e4) 20... bxc5 $1 {[%emt 0:00:00]} 21. dxc5 {[%emt 0:00:00]} (21. Nxc5 Nxc5 22. Qxc5 e5 $11) 21... e5 {[%emt 0:02:00]} 22. Bc3 {[%emt 0:00:00] And now Ba5 would win. White is more active.} e4 {[%emt 0:00:00]} (22... Nb8 $14) 23. Ba5 $16 {[%emt 0:00:00]} Qb8 {[%emt 0:00:00]} 24. Rb1 $36 {[%emt 0:00:00][%mdl 2048] Black is under strong pressure.} Qa8 {[%emt 0:00:00]} 25. Bxd8 {[%emt 0:00:00]} Rxd8 {[%emt 0:00:00]} (25... exd3 $2 26. Be7 $18) 26. Nb4 {[%emt 0:00:00][%cal Bd3b4,Bb4c6,Bc6e7][%mdl 32]} Nc7 {[%emt 0:00:00][%cal Be8c7,Bc7b5,Bb5c3][%mdl 32]} 27. Nc4 {[%emt 0:05:00]} Nb5 {[%emt 0:00:00] Strongly threatening ...Nc3.} 28. Na5 $1 {[%emt 0:00:00]} Nc3 {[%emt 0:00:00]} 29. Rb2 {[%emt 0:00:00]} Nxc5 {[%emt 0:00:00]} 30. Nbxc6 {[%emt 0:00:00]} (30. Rc2 N5a4 $14) 30... Nb3 {[%emt 0:00:00]} 31. Qg5 {[%emt 0:00:00]} (31. Nxb3 Qxc6 32. Kh2 Qb6 $17) 31... Re8 {[%emt 0:00:00]} 32. Nb7 {[%emt 0:00:00]} (32. Rxb3 $6 Bxb3 33. Ne7+ Kf8 34. Nxf5 Nxe2+ 35. Kh2 gxf5 $11) 32... Bc4 {[%emt 0:02:05] [#]} (32... h6 $16 {might work better.} 33. Qe3 Re6) 33. Ne7+ $1 $18 {[%emt 0:00:00]} Kf8 {[%emt 0:00:43]} 34. Nd6 {[%emt 0:00:00][%csl LRc4,LRe8]} Nxe2+ {[%emt 0:01:04] [#]} 35. Rxe2 $1 {[%emt 0:00:00][%mdl 512]} Bxe2 {[%emt 0:00:09]} 36. Nxg6+ {[%emt 0:02:08][%mdl 64] Demolition} hxg6 {[%emt 0:00:33]} 37. Qxg6 {[%emt 0:00:03][%csl Gd6][%cal Rg6f7]} Re7 {[%emt 0:00:22] [#] Against Qf7+} 38. Nxf5 {[%emt 0:02:44] Dancing on a razor blade.} (38. Qxf5+ $6 Kg8 39. Rb1 (39. Bxe4 Rxe4 40. Qf7+ Kh8 $11) 39... Nd4 $14) (38. Re1 $1 $18 Qc6 39. Qxf5+ (39. Rxe2 Nd4 $14) 39... Kg8 40. Qg6 (40. Nxe4 Nd4 $15) (40. Bxe4 Qxd6 41. Bd5+ Kh8 $11) (40. Rxe2 $2 Nd4 $19)) 38... Bxf1 $11 {[%emt 0:00:30]} (38... Rd7 $2 39. Re1 Qe8 40. Qxe8+ Kxe8 41. Nxg7+ Rxg7 42. Rxe2 $18) (38... Qe8 {is interesting.} 39. Nxe7 Bxf1 40. Qf5+ Kxe7 41. Qxe4+ Kf8) 39. Bxf1 {[%emt 0:01:05]} (39. Nxe7 {with more complications.} Qe8 40. Qf5+ Kxe7 41. Qxe4+ Kf8 42. Qf3+) 39... Qe8 {[%emt 0:01:20]} (39... Qd8 $11) 40. Nxe7 {[%emt 0:00:00]} ({White should try} 40. Qd6 $1 $14 Be5 41. Qh6+ (41. Qb4 Nd4 $11) 41... Bg7 42. Qe3) 40... Qxe7 {[%emt 0:00:13] The position is equal.} 41. Qf5+ {[%emt 0:30:11]} Bf6 {[%emt 0:30:35]} 42. Qc8+ {[%emt 0:00:00]} Kg7 {[%emt 0:00:00]} 43. Qg4+ {[%emt 0:00:00]} ({Much worse is} 43. Bc4 Nd4 44. Kg2 Kh6 $17) 43... Kh6 {[%emt 0:00:00]} (43... Bg5 $2 44. h4 $18) 44. Qf4+ {[%emt 0:00:00]} Bg5 {[%emt 0:00:00]} 45. Qb8 {[%emt 0:02:49]} Nd2 {[%emt 0:00:00]} 46. Be2 {[%emt 0:00:00] Threatens to win with h4.} Kh7 {[%emt 0:00:00]} 47. h4 {[%emt 0:00:00]} Bf6 {[%emt 0:00:00]} 48. Qf4 {[%emt 0:00:00]} Qd8 {[%emt 0:00:00]} 49. Qf5+ {[%emt 0:00:00]} Kh8 {[%emt 0:00:00]} 50. Qg6 {[%emt 0:00:00]} Qd4 {[%emt 0:00:00]} 51. Bg4 {[%emt 0:00:00]} Qa1+ $1 {[%emt 0:00:32]} 52. Kh2 {[%emt 0:00:00] Intending Qh6+ and mate.} Nf3+ {[%emt 0:00:39]} 53. Bxf3 {[%emt 0:00:00]} exf3 {[%emt 0:00:02]} 54. Qe8+ {[%emt 0:00:00]} Kg7 {[%emt 0:01:28][%cal Oa1d4]} 55. Qd7+ {[%emt 0:00:00]} Kg6 {[%emt 0:00:36]} 56. Qd3+ {[%emt 0:00:00]} Kf7 {[%emt 0:00:31]} 57. Qd5+ {[%emt 0:00:00]} ({Much weaker is} 57. Qxf3 Qxa6 58. Qh5+ Kg7 $17) 57... Kg7 {[%emt 0:01:23]} 58. Qb7+ {[%emt 0:00:33]} Kg6 {[%emt 0:00:07]} 59. h5+ {[%emt 0:01:33][%mdl 64] Decoy} Kxh5 {[%emt 0:01:23] White must now prevent ...Kg5.} 60. Qxf3+ {[%emt 0:00:10]} Kg6 {[%emt 0:00:26]} (60... Kh6 $5 {[%cal Ra1a6]} 61. Qe3+ Kg6 62. Qxa7 Bd4 $11) 61. Qe4+ {[%emt 0:00:22]} Kh6 {[%emt 0:00:26]} 62. Qe3+ {[%emt 0:00:08]} Kg6 {[%emt 0:00:09]} 63. Qxa7 {[%emt 0:00:13] Hoping for Qb6.} Bd4 {[%emt 0:00:32] Prevents Qb6+.} 64. Qd7 {[%emt 0:01:19]} Bxf2 {[%emt 0:00:54]} 65. Qg4+ {[%emt 0:00:23]} Kf7 {[%emt 0:00:24]} 66. Qh5+ {[%emt 0:00:57]} Kg7 {[%emt 0:00:43] ( -> ...Qg1+)} 67. Qg4+ {[%emt 0:00:21] White really could win this.   Weighted Error Value: White=0.11 (very precise) /Black=0.11 (very precise)} 1/2-1/2

[Event "Bangabandhu Premier Div League 2022"]
[Site "Dhaka"]
[Date "2022.12.05"]
[Round "6.2"]
[White "Habibur Rahman, Sohel"]
[Black "Aradhya, Garg"]
[Result "0-1"]
[ECO "B10"]
[WhiteElo "1871"]
[BlackElo "2289"]
[Annotator "TA"]
[PlyCount "42"]
[EventDate "2022.11.30"]
[EventType "team-tourn"]
[EventCountry "BAN"]
[SourceTitle "playchess.com"]
[Source "ChessBase"]
[SourceQuality "1"]
[TimeControl "40/5400+30:1800+30"]

{[%evp 9,42,-53,-39,-30,-42,-47,-37,-52,-37,-43,-35,-75,-75,-108,-102,-108,-109,-117,-96,-123,-107,-110,-108,-325,-344,-496,-494,-743,-743,-741,-737,-719,-727,-1961,-1890]} 1. e4 {[%emt 0:03:08]} c6 {[%emt 0:00:02][%cal Bc7c6,Bc6d5][%mdl 32]} 2. Bc4 {[%emt 0:00:34]} d5 {[%emt 0:00:05]} 3. exd5 {[%emt 0:00:38]} cxd5 {[%emt 0:00:04]} 4. Bb3 {[%emt 0:00:23]} Nc6 {[%emt 0:00:09]} 5. a3 {[%emt 0:00:42]} e5 {[%emt 0:01:11]} 6. d3 {[%emt 0:00:52] B10: Caro-Kann: 2 d3 and 2 c4.} Nf6 {[%emt 0:01:31]} 7. h3 {[%emt 0:02:20] [#] Against Bg4} Bc5 $146 {[%emt 0:05:43]} ({Predecessor:} 7... h6 8. Nc3 Bc5 9. Nf3 O-O 10. O-O Re8 11. Na4 Bd6 12. Ba2 Be6 13. b4 b6 {0-1 (37) Kirzhaev,A-Melnik,G (1936) Nalchik 2016}) 8. Ne2 {[%emt 0:02:07] Black is slightly better.} Be6 {[%emt 0:00:50]} 9. O-O {[%emt 0:03:29]} Qd7 {[%emt 0:01:36][%cal Oe6h3]} 10. Kh2 {[%emt 0:06:05]} h6 $36 {[%emt 0:02:11][%mdl 2048] Black has strong initiative.} 11. f4 {[%emt 0:03:19]} exf4 {[%emt 0:03:24] Black has more active pieces. The white rooks are badly placed.} 12. Bxf4 {[%emt 0:02:06]} g5 {[%emt 0:13:46] Prevents d4.} 13. d4 {[%emt 0:08:53]} Be7 {[%emt 0:00:52]} (13... Bb6 {simplifies} 14. Bg3 Ne4 15. Nbc3 Nxg3 16. Nxg3 Bc7) 14. Be5 {[%emt 0:10:57]} Nxe5 {[%emt 0:00:29]} 15. dxe5 {[%emt 0:00:04]} Qc7 {[%emt 0:00:12]} 16. Qd4 {[%emt 0:00:59] [#]} (16. g3 $17 Qxe5 17. Nbc3) 16... Bc5 $19 {[%emt 0:00:37]} 17. Qc3 {[%emt 0:07:59]} ({Much weaker is} 17. Ba4+ Kf8 18. Qd3 Qxe5+ 19. g3 h5) (17. Qd3 $142 Qxe5+ 18. g3) 17... Ne4 {[%emt 0:02:23] Black is clearly winning.} 18. Ba4+ {[%emt 0:05:17]} (18. Qd3 $142 Qxe5+ 19. Kh1) 18... Kf8 {[%emt 0:01:01]} 19. Qf3 {[%emt 0:12:05]} Qxe5+ {[%emt 0:00:29]} 20. g3 {[%emt 0:00:20]} h5 {[%emt 0:00:40] Threatens to win with ...h4.} ({Inferior is} 20... Qxb2 21. Nbc3 Nd2 22. Qf6 $17) 21. Kg2 {[%emt 0:09:11] [#]} Bxh3+ $1 {[%emt 0:00:28][%mdl 512] Black took control after the opening.   Weighted Error Value: White=1.04/Black=0.03 (flawless)} 0-1

[Event "Bangabandhu Premier Div League 2022"]
[Site "Dhaka"]
[Date "2022.12.05"]
[Round "6.3"]
[White "Harsha Bharathakoti"]
[Black "Rakhmanov, Aleksandr"]
[Result "1/2-1/2"]
[ECO "D31"]
[WhiteElo "2582"]
[BlackElo "2630"]
[Annotator "TA"]
[PlyCount "60"]
[EventDate "2022.12.01"]
[EventCountry "BAN"]
[SourceTitle "playchess.com"]
[Source "ChessBase"]
[SourceQuality "1"]
[TimeControl "40/5400+30:1800+30"]

{[%evp 9,60,22,20,20,19,25,16,23,33,27,28,21,23,29,35,18,45,0,0,0,0,0,0,0,0,-2,0,-10,0,-13,-14,-20,-8,-8,-9,-8,0,-8,0,-8,-9,-14,0,-11,0,-17,0,-18,0,-13,0,-10,0]} 1. d4 {[%emt 1:31:00]} d5 {[%emt 1:31:00]} 2. c4 {[%emt 0:00:30]} e6 {[%emt 0:00:00]} 3. Nc3 {[%emt 0:00:30]} a6 {[%emt 0:01:00]} 4. cxd5 {[%emt 0:00:00]} exd5 {[%emt 0:00:30]} 5. Bf4 {[%emt 0:01:00]} Nf6 {[%emt 0:00:30]} 6. e3 {[%emt 0:00:00] D31: Queen's Gambit Declined: Semi-Slav without ...Nf6 (+ Marshall Gambit and Noteboom) and Exchange Variation lines without ...Nf6.} Bd6 {[%emt 0:00:30]} 7. Bg5 {[%emt 0:01:00]} Be6 {[%emt 0:00:30]} 8. Bd3 {[%emt 0:00:30]} Nbd7 {[%emt 0:00:00]} 9. f4 $1 {[%mdl 4] [#] Black must now prevent f5. is more profitable than 9.Nge2 at the moment.} h6 {[%emt 0:01:00] Inhibits f5.} 10. Bh4 {[%emt 0:00:00]} g5 {[%emt 0:00:30] Prevents f5.} 11. fxg5 {[%emt 0:01:30]} hxg5 {[%emt 0:00:00]} 12. Bxg5 {[%emt 0:00:30]} Bxh2 {[%emt 0:00:00] [#] aiming for ...Bg3+.} 13. Kd2 {[%emt 0:00:00]} Rg8 $1 {...Bxg1 is the strong threat. The position is equal.} 14. Rxh2 {[%emt 0:01:00] Threatens to win with Nf3.} Rxg5 {[#]} 15. Rh8+ $146 {[%emt 0:00:30]} ({Predecessor:} 15. Qf3 Rg8 16. Nge2 Qe7 17. Nf4 c6 18. Re1 O-O-O 19. Kc1 Kb8 20. Rh6 Ng4 21. Rh7 {½-½ (62) Plat,V (2546)-Galyas,M (2450) Budapest 2022}) 15... Rg8 {[%emt 0:00:00]} 16. Rxg8+ {[%emt 0:00:30]} Nxg8 {[%emt 0:03:00]} 17. Qh5 {[%emt 0:00:30]} Ngf6 {[%emt 0:00:30]} (17... c6 {simplifies} 18. Nge2 Qe7 19. Rc1 Nb6) 18. Qh8+ {[%emt 0:00:00]} Ke7 {[%emt 0:00:30]} 19. Qxd8+ {[%emt 0:00:00]} (19. Qh2 {seems wilder.} c6 20. Nge2 Qh8 21. Qf4) 19... Rxd8 {[%emt 0:00:30]} 20. Nge2 {[%emt 0:01:30]} a5 {[%emt 0:00:30]} 21. a3 $1 {[%emt 0:00:30]} Ra8 {[%emt 0:00:00]} 22. Nf4 c6 {[%emt 0:01:00]} 23. Rh1 {[%emt 0:01:00]} Rg8 {[%emt 0:00:00]} 24. Ke2 Bg4+ {[%emt 0:01:00]} 25. Kd2 {[%emt 0:00:00]} Be6 {[%emt 0:00:00]} 26. Ke2 Bg4+ {[%emt 0:00:00]} 27. Kd2 {[%emt 0:00:00]} Be6 {[%emt 0:00:00]} 28. Ke2 {[%emt 0:00:00]} Bg4+ {[%emt 0:00:00]} 29. Kd2 {[%emt 0:00:00]} Be6 {[%emt 0:00:00]} 30. Ke2 {[%emt 0:00:00]} Bg4+ {[%emt 0:00:00] Weighted Error Value: White=0.04 (flawless) /Black=0.06 (flawless)} 1/2-1/2